lending/lending_fUSD_20260306
["ID","MTS","AMOUNT","RATE_DAILY","PERIOD"]
[407781769,1772797852191,-530.48508974,0.00027397,5]
[407781770,1772797852201,-212.42196071,0.00027397,4]
[407781771,1772797852211,-150.0,0.00027397,5]
[407781772,1772797852221,-160.40996513,0.00027397,5]
[407781773,1772797852231,-4304.25,0.000274,7]
[407781774,1772797852240,-3567.05,0.000274,7]
[407781775,1772797852251,-180.39529822,0.00027415,2]
[407781776,1772797852260,-825.0,0.00027422,60]
[407781777,1772797852272,-1225.37032197,0.00027486,2]
[407781778,1772797852281,-400.0,0.00027507,16]
[407781779,1772797852292,-1000.0,0.00027513,2]
[407781780,1772797852301,-153.41341492,0.0002758,2]
[407781781,1772797852311,-152.0,0.00027784,7]
[407781782,1772797852322,-1000.0,0.00027787,2]
[407781783,1772797852332,-1003.11,0.00027789,30]
[407781784,1772797852342,-4304.25,0.000279,7]
[407781785,1772797852353,-3567.05,0.000279,7]
[407781786,1772797852364,-250.0,0.00027945,5]
[407781787,1772797852374,-51081.16134182,0.00028,2]
[407781788,1772797852385,-936.13,0.00028,15]
[407781789,1772797852395,-320.0,0.00028,5]
[407781790,1772797852405,-160.0,0.00028,10]
[407781791,1772797852415,-1000.0,0.00028061,2]
[407781792,1772797852425,-1679.99510475,0.0002808,30]
[407781793,1772797852435,-200.0,0.00028143,5]
[407781794,1772797852445,-153.25442745,0.00028198,2]
[407781795,1772797852455,-400.0,0.0002824,18]
[407781796,1772797852465,-183.38,0.00028242,2]
[407781797,1772797852475,-1000.0,0.00028335,2]
[407781798,1772797852485,-4304.25,0.000284,7]
[407781799,1772797852495,-3567.05,0.000284,7]
[407781800,1772797852504,-2500.0,0.00028452,5]
[407781801,1772797852514,-152.0,0.00028479,8]
[407781802,1772797852524,-480.49204324,0.00028493,5]
[407781803,1772797852533,-150.0,0.00028544,2]
[407781804,1772797852544,-1000.0,0.00028609,2]
[407781805,1772797852554,-500.0,0.00028627,120]
[407781806,1772797852563,-792.81,0.00028627,120]
[407781807,1772797852573,-1315.0529832,0.00028646,15]
[407781808,1772797852583,-496.60968372,0.00028767,2]
[407781809,1772797852593,-1000.0,0.00028883,2]
[407781810,1772797852603,-20000.0,0.000289,4]
[407781811,1772797852612,-150.0,0.000289,2]
[407781812,1772797852622,-150.0,0.000289,2]
[407781813,1772797852632,-150.0,0.000289,2]
[407781814,1772797852642,-150.0,0.000289,2]
[407781815,1772797852653,-150.0,0.000289,2]
[407781816,1772797852663,-150.0,0.000289,2]
[407781817,1772797852673,-619.0,0.000289,2]
[407781818,1772797852683,-1042.0,0.000289,2]
[407781819,1772797852694,-1341.0,0.000289,2]
[407781820,1772797852704,-3502.0,0.000289,2]
[407781821,1772797852713,-1279.0,0.000289,2]
[407781822,1772797852723,-150.0,0.000289,2]
[407781823,1772797852733,-414.0,0.000289,2]
[407781824,1772797852743,-3746.0,0.000289,2]
[407781825,1772797852753,-2808.06284759,0.00028915,19]
[407781826,1772797852762,-166.34,0.00028955,2]
[407781827,1772797852773,-400.0,0.00028974,20]
[407781828,1772797852782,-4304.25,0.00029,7]
[407781829,1772797852793,-3567.05,0.00029,7]
[407781830,1772797852802,-172.74325605,0.00029,7]
[407781831,1772797852813,-160.0,0.00029,7]
[407781832,1772797852822,-652.07601716,0.00029035,2]
[407781833,1772797852832,-200.0,0.00029143,5]
[407781834,1772797852843,-1000.0,0.00029157,2]
[407781835,1772797852853,-152.0,0.00029173,9]
[407781836,1772797852863,-1300.64494982,0.00029377,2]
[407781837,1772797852874,-1000.0,0.00029388,2]
[407781838,1772797852884,-1000.0,0.00029431,2]
[407781839,1772797852894,-792.81,0.00029572,120]
[407781840,1772797852904,-1225.37032197,0.00029643,2]
[407781841,1772797852915,-1000.0,0.00029705,2]
[407781842,1772797852924,-4304.25,0.000298,7]
[407781843,1772797852934,-3567.05,0.000298,7]
[407781844,1772797852947,-2500.0,0.00029822,5]
[407781845,1772797852956,-152.0,0.00029867,10]
[407781846,1772797852966,-825.0,0.00029896,60]
[407781847,1772797852976,-394.543265,0.00029899,7]
[407781848,1772797852986,-394.543265,0.00029899,7]
[407781849,1772797852996,-394.543265,0.00029899,7]
[407781850,1772797853005,-394.543265,0.00029899,7]
[407781851,1772797853015,-151.0,0.00029899,7]
[407781852,1772797853027,-151.0,0.00029899,7]
[407781853,1772797853037,-151.0,0.00029899,7]
[407781854,1772797853047,-241.645676,0.00029899,7]
[407781855,1772797853058,-241.645676,0.00029899,7]
[407781856,1772797853069,-241.645676,0.00029899,7]
[407781857,1772797853081,-241.645676,0.00029899,7]
[407781858,1772797853090,-332.483725,0.00029899,7]
[407781859,1772797853101,-332.483725,0.00029899,7]
[407781860,1772797853111,-332.483725,0.00029899,7]
[407781861,1772797853122,-332.483725,0.00029899,7]
[407781862,1772797853131,-151.0,0.00029899,7]
[407781863,1772797853141,-151.0,0.00029899,7]
[407781864,1772797853150,-225.902031,0.00029899,7]
[407781865,1772797853160,-225.902031,0.00029899,7]
[407781866,1772797853171,-225.902031,0.00029899,7]
[407781867,1772797853181,-225.902031,0.00029899,7]
[407781868,1772797853191,-1068.578217,0.00029899,7]
[407781869,1772797853202,-1068.578217,0.00029899,7]
[407781870,1772797853212,-1068.578217,0.00029899,7]
[407781871,1772797853222,-1068.578217,0.00029899,7]
[407781872,1772797853232,-204.253231,0.00029899,7]
[407781873,1772797853242,-617.751247,0.00029899,7]
[407781874,1772797853252,-617.751247,0.00029899,7]
[407781875,1772797853261,-617.751247,0.00029899,7]
[407781876,1772797853271,-617.751247,0.00029899,7]
[407781877,1772797853281,-300.439372,0.00029899,7]
[407781878,1772797853291,-507.054478,0.00029899,7]
[407781879,1772797853301,-507.054478,0.00029899,7]
[407781880,1772797853311,-507.054478,0.00029899,7]
[407781881,1772797853321,-507.054478,0.00029899,7]
[407781882,1772797853330,-79289.34806829,0.000299,2]
[407781883,1772797853340,-152.0,0.000299,120]
[407781884,1772797853349,-13163.40677272,0.000299,3]
[407781885,1772797853359,-150.0,0.00029971,2]
[407781886,1772797853369,-1000.0,0.00029979,2]
[407781887,1772797853379,-57285.06515939,0.0002999,30]
[407781888,1772797853390,-18544.6990814,0.0003,2]
[407781889,1772797853401,-19971.14163881,0.0003,2]
[407781890,1772797853411,-1000.0,0.0003,120]
[407781891,1772797853421,-1000.0,0.0003,120]
[407781892,1772797853431,-1000.0,0.0003,120]
[407781893,1772797853442,-1000.0,0.0003,120]
[407781894,1772797853453,-10000.0,0.0003,7]
[407781895,1772797853464,-66545.00014388,0.0003,5]
[407781896,1772797853475,-1544.20872838,0.0003,3]
[407781897,1772797853484,-7523.9127835,0.0003,2]
[407781898,1772797853494,-10000.0,0.0003,10]
[407781899,1772797853504,-9500.0,0.0003,3]
[407781900,1772797853514,-2000.0,0.0003,14]
[407781901,1772797853524,-200.0,0.0003,11]
[407781902,1772797853534,-200.0,0.0003,11]
[407781903,1772797853543,-200.0,0.0003,11]
[407781904,1772797853553,-200.0,0.0003,11]
[407781905,1772797853563,-305.059999,0.0003,11]
[407781906,1772797853573,-160.0,0.0003,3]
[407781907,1772797853582,-160.0,0.0003,30]
[407781908,1772797853592,-151.0,0.0003,7]
[407781909,1772797853602,-172.74325605,0.0003,3]
[407781910,1772797853611,-1000.0,0.0003,7]
[407781911,1772797853621,-13924.99457359,0.0003013,2]
[407781912,1772797853631,-7772.40194399,0.0003013,2]
[407781913,1772797853640,-150.0,0.00030136,2]
[407781914,1772797853650,-2073.90204719,0.00030136,22]
[407781915,1772797853659,-192.61,0.00030137,2]
[407781916,1772797853668,-151.0,0.00030137,7]
[407781917,1772797853679,-151.0,0.00030137,7]
[407781918,1772797853689,-9915.0,0.00030137,120]
[407781919,1772797853699,-286.053472,0.00030143,5]
[407781920,1772797853708,-15618.27407191,0.000302,2]
[407781921,1772797853718,-1999.0,0.00030253,7]
[407781922,1772797853729,-2000.0,0.000303,2]
[407781923,1772797853739,-4304.25,0.000304,7]
[407781924,1772797853750,-175.33508358,0.000304,5]
[407781925,1772797853760,-393.21,0.00030405,60]
[407781926,1772797853770,-199.92,0.00030411,120]
[407781927,1772797853780,-152.0,0.00030561,11]
[407781928,1772797853790,-1003.11,0.00030724,30]
[407781929,1772797853800,-2826.59181261,0.0003081,22]
[407781930,1772797853810,-51836.01227505,0.00031,2]
[407781931,1772797853820,-160.0,0.00031,120]
[407781932,1772797853830,-186.4015376,0.00031,30]
[407781933,1772797853840,-400.0,0.00031174,27]
[407781934,1772797853850,-152.0,0.00031255,12]
[407781935,1772797853860,-863.80508752,0.00031305,2]
[407781936,1772797853869,-150.0,0.000314,120]
[407781937,1772797853879,-19890.27082099,0.0003143,4]
[407781938,1772797853889,-150.0,0.0003147,2]
[407781939,1772797853899,-13054.016559,0.00031728,30]
[407781940,1772797853909,-22675.192067,0.0003173,30]
[407781941,1772797853919,-360.0,0.00031774,14]
[407781942,1772797853928,-1225.37032197,0.000318,2]
[407781943,1772797853940,-792.81,0.00031849,120]
[407781944,1772797853953,-200353.0,0.0003185,20]
[407781945,1772797853962,-150.0,0.000319,2]
[407781946,1772797853972,-619.0,0.000319,2]
[407781947,1772797853982,-1042.0,0.000319,2]
[407781948,1772797853993,-1341.0,0.000319,2]
[407781949,1772797854003,-3502.0,0.000319,2]
[407781950,1772797854013,-1279.0,0.000319,2]
[407781951,1772797854025,-333.673,0.000319,2]
[407781952,1772797854034,-2009.46,0.000319,2]
[407781953,1772797854044,-152.0,0.00031949,13]
[407781954,1772797854055,-300.0,0.00032,3]
[407781955,1772797854064,-242.0,0.00032,120]
[407781956,1772797854074,-3567.05,0.00032,7]
[407781957,1772797854085,-25014.7329079,0.00032,120]
[407781958,1772797854095,-160.0,0.00032,30]
[407781959,1772797854104,-360.0,0.00032,14]
[407781960,1772797854116,-1033.93,0.00032,120]
[407781961,1772797854127,-360.0,0.00032048,14]
[407781962,1772797854138,-500.0,0.0003211,2]
[407781963,1772797854149,-1000.0,0.00032127,2]
[407781964,1772797854160,-360.0,0.00032322,14]
[407781965,1772797854172,-825.0,0.0003237,60]
[407781966,1772797854182,-360.0,0.00032596,14]
[407781967,1772797854194,-152.0,0.00032643,14]
[407781968,1772797854206,-3319.46394368,0.00032704,25]
[407781969,1772797854216,-515.0,0.00032857,18]
[407781970,1772797854226,-309.0,0.00032877,2]
[407781971,1772797854236,-3259.0,0.00032877,120]
[407781972,1772797854245,-792.81,0.00032899,120]
[407781973,1772797854259,-244.8418869,0.00032899,7]
[407781974,1772797854268,-200353.0,0.000329,20]
[407781975,1772797854277,-563.075186,0.00033,14]
[407781976,1772797854287,-153.41341492,0.0003302,2]
[407781977,1772797854297,-150.0,0.00033043,2]
[407781978,1772797854307,-360.0,0.00033075,30]
[407781979,1772797854316,-152.0,0.00033337,15]
[407781980,1772797854325,-792.81,0.00033384,120]
[407781981,1772797854335,-171.44,0.00033532,13]
[407781982,1772797854344,-171.44,0.00033532,13]
[407781983,1772797854353,-171.44,0.00033532,13]
[407781984,1772797854363,-171.44,0.00033532,13]
[407781985,1772797854372,-177.09,0.00033532,13]
[407781986,1772797854382,-177.08,0.00033532,13]
[407781987,1772797854393,-200.0,0.00033597,31]
[407781988,1772797854402,-1003.11,0.0003366,30]
[407781989,1772797854411,-792.81,0.00033949,120]
[407781990,1772797854421,-200353.0,0.0003395,20]
[407781991,1772797854432,-200.0,0.00034,120]
[407781992,1772797854442,-400.0,0.00034,100]
[407781993,1772797854451,-4304.25,0.00034,14]
[407781994,1772797854462,-13988.221616,0.00034,5]
[407781995,1772797854471,-14099.29598962,0.00034,4]
[407781996,1772797854480,-2000.0,0.00034,2]
[407781997,1772797854489,-152.0,0.00034031,16]
[407781998,1772797854498,-171.44,0.0003408,13]
[407781999,1772797854507,-171.44,0.0003408,13]
[407782000,1772797854518,-171.44,0.0003408,13]
[407782001,1772797854527,-171.44,0.0003408,13]
[407782002,1772797854537,-177.09,0.0003408,13]
[407782003,1772797854546,-177.08,0.0003408,13]
[407782004,1772797854555,-795.28,0.000343,30]
[407782005,1772797854566,-3774.41404197,0.00034599,28]
[407782006,1772797854577,-393.21,0.00034608,60]
[407782007,1772797854587,-171.44,0.00034628,13]
[407782008,1772797854596,-171.44,0.00034628,13]
[407782009,1772797854605,-171.44,0.00034628,13]
[407782010,1772797854615,-171.44,0.00034628,13]
[407782011,1772797854624,-177.09,0.00034628,13]
[407782012,1772797854635,-177.08,0.00034628,13]
[407782013,1772797854644,-150.0,0.00034696,2]
[407782014,1772797854654,-150.0,0.00034712,30]
[407782015,1772797854664,-155.32,0.00034712,30]
[407782016,1772797854673,-152.0,0.00034725,17]
[407782017,1772797854683,-363.0,0.00034729,30]
[407782018,1772797854691,-360.0,0.00034729,30]
[407782019,1772797854701,-632.72,0.00034775,2]
[407782020,1772797854711,-1500.0,0.00034795,2]
[407782021,1772797854719,-307.88,0.00034841,39]
[407782022,1772797854729,-825.0,0.00034845,90]
[407782023,1772797854739,-1000.0,0.00034866,2]
[407782024,1772797854748,-388.04272933,0.0003488,120]
[407782025,1772797854757,-500.0,0.00034899,120]
[407782026,1772797854768,-500.0,0.00034899,120]
[407782027,1772797854778,-500.0,0.00034899,120]
[407782028,1772797854787,-274.62,0.00034899,120]
[407782029,1772797854796,-619.0,0.000349,2]
[407782030,1772797854806,-1042.0,0.000349,2]
[407782031,1772797854815,-1341.0,0.000349,2]
[407782032,1772797854824,-3502.0,0.000349,2]
[407782033,1772797854833,-1279.0,0.000349,2]
[407782034,1772797854842,-151.0,0.00034997,14]
[407782035,1772797854851,-176.80081422,0.00034999,30]
[407782036,1772797854860,-10000.0,0.00035,7]
[407782037,1772797854869,-25467.16474211,0.00035,120]
[407782038,1772797854878,-150.0,0.00035,120]
[407782039,1772797854887,-2032.0,0.00035,30]
[407782040,1772797854896,-340000.0,0.00035,4]
[407782041,1772797854906,-3005.711,0.00035,120]
[407782042,1772797854915,-7441.22,0.00035,14]
[407782043,1772797854924,-241.65,0.00035,2]
[407782044,1772797854936,-200353.0,0.00035,20]
[407782045,1772797854954,-151.0,0.00035,7]
[407782046,1772797854969,-151.0,0.00035,7]
[407782047,1772797854980,-1831.985538,0.00035,7]
[407782048,1772797854992,-1831.985538,0.00035,7]
[407782049,1772797855006,-1831.985538,0.00035,7]
[407782050,1772797855020,-1831.985538,0.00035,7]
[407782051,1772797855033,-200.0,0.00035,3]
[407782052,1772797855047,-151.0,0.00035,7]
[407782053,1772797855061,-151.0,0.00035,7]
[407782054,1772797855073,-151.0,0.00035,7]
[407782055,1772797855084,-151.0,0.00035,7]
[407782056,1772797855099,-183.0,0.00035068,10]
[407782057,1772797855114,-400.0,0.000352,100]
[407782058,1772797855127,-1033.93,0.000352,120]
[407782059,1772797855141,-941.64402521,0.00035254,2]
[407782060,1772797855154,-152.0,0.00035419,18]
[407782061,1772797855168,-517.85330651,0.000356,120]
[407782062,1772797855181,-563.11,0.00035602,2]
[407782063,1772797855194,-10674.48940349,0.0003561,2]
[407782064,1772797855208,-151.0,0.00035616,7]
[407782065,1772797855222,-151.0,0.00035616,7]
[407782066,1772797855235,-151.0,0.00035616,7]
[407782067,1772797855246,-157.435221,0.00035616,7]
[407782068,1772797855259,-683.77515311,0.00035616,120]
[407782069,1772797855272,-192.61,0.00035616,2]
[407782070,1772797855285,-1000.0,0.00035616,10]
[407782071,1772797855296,-1000.0,0.00035616,10]
[407782072,1772797855308,-1000.0,0.00035616,10]
[407782073,1772797855320,-1000.0,0.00035616,10]
[407782074,1772797855330,-1000.0,0.00035616,10]
[407782075,1772797855340,-1000.0,0.00035616,10]
[407782076,1772797855356,-1000.0,0.00035616,10]
[407782077,1772797855370,-1000.0,0.00035616,10]
[407782078,1772797855382,-1000.0,0.00035616,10]
[407782079,1772797855392,-1000.0,0.00035616,10]
[407782080,1772797855403,-1000.0,0.00035616,10]
[407782081,1772797855416,-1000.0,0.00035616,10]
[407782082,1772797855429,-1000.0,0.00035616,10]
[407782083,1772797855441,-1000.0,0.00035616,10]
[407782084,1772797855452,-1000.0,0.00035616,10]
[407782085,1772797855462,-1000.0,0.00035616,10]
[407782086,1772797855474,-1000.0,0.00035616,10]
[407782087,1772797855485,-1000.0,0.00035616,10]
[407782088,1772797855497,-1000.0,0.00035616,10]
[407782089,1772797855510,-186.0,0.00035616,10]
[407782090,1772797855522,-201.73641007,0.00035616,2]
[407782091,1772797855533,-151.0,0.00035616,7]
[407782092,1772797855545,-1000.0,0.00035616,10]
[407782093,1772797855557,-1000.0,0.00035616,10]
[407782094,1772797855569,-151.0,0.00035773,7]
[407782095,1772797855581,-151.0,0.00035773,7]
[407782096,1772797855593,-259.150494,0.00035773,7]
[407782097,1772797855606,-792.81,0.00035839,120]
[407782098,1772797855619,-724.53543,0.00035888,30]
[407782099,1772797855632,-171.43,0.00035998,13]
[407782100,1772797855643,-171.43,0.00035998,13]
[407782101,1772797855655,-171.43,0.00035998,13]
[407782102,1772797855668,-177.09,0.00035998,13]
[407782103,1772797855679,-177.08,0.00035998,13]
[407782104,1772797855691,-325.4056652,0.00036,7]
[407782105,1772797855702,-1172.11972504,0.00036,120]
[407782106,1772797855715,-235970.89547068,0.00036,2]
[407782107,1772797855727,-155951.49493438,0.00036,2]
[407782108,1772797855738,-40000.0,0.00036,2]
[407782109,1772797855750,-200.0,0.00036,120]
[407782110,1772797855761,-432.0,0.00036,120]
[407782111,1772797855772,-218.95415503,0.00036,10]
[407782112,1772797855785,-52749.31523791,0.00036,10]
[407782113,1772797856766,-405.14344853,0.00036,10]
[407782114,1772797857212,-353.58667506,0.00015599,2]
[407782115,1772797857224,-333.47181857,0.00015599,2]
[407782116,1772797857235,-87.64009077,0.000156,2]
[407782117,1772797857249,-6660.59370923,0.000156,2]
[407782118,1772797857261,-426.0,0.00020535,2]
[407782119,1772797857272,-426.0,0.00020809,2]
[407782120,1772797857284,-1189.0,0.00024918,2]
[407782121,1772797857296,-2485.0,0.00025192,2]
[407782122,1772797857307,-809.29337837,0.00025466,2]
[407782123,1772797857318,-1999.0,0.00030527,7]
[407782124,1772797857329,-507.9370095,0.00035616,7]
[407782125,1772797857340,-507.9370095,0.00035616,7]
[407782126,1772797857351,-507.9370095,0.00035616,7]
[407782127,1772797857363,-507.9370095,0.00035616,7]
[407782128,1772797857374,-507.9370095,0.00035616,7]
[407782129,1772797857386,-507.9370095,0.00035616,7]
[407782130,1772797857397,-507.9370095,0.00035616,7]
[407782131,1772797857408,-507.9370095,0.00035616,7]
[407782132,1772797857419,-507.9370095,0.00035616,7]
[407782133,1772797857430,-507.9370095,0.00035616,7]
[407782134,1772797857441,-507.9370095,0.00035616,7]
[407782135,1772797857452,-507.9370095,0.00035616,7]
[407782136,1772797857464,-507.9370095,0.00035616,7]
[407782137,1772797857475,-507.9370095,0.00035616,7]
[407782138,1772797857487,-507.9370095,0.00035616,7]
[407782139,1772797857498,-507.9370095,0.00035616,7]
[407782140,1772797857511,-507.9370095,0.00035616,7]
[407782141,1772797857522,-507.9370095,0.00035616,7]
[407782142,1772797858008,-507.9370095,0.00035616,7]
[407782143,1772797858048,-507.9370095,0.00035616,7]
[407782144,1772797858070,-507.9370095,0.00035616,7]
[407782145,1772797858080,-507.9370095,0.00035616,7]
[407782146,1772797858091,-507.9370095,0.00035616,7]
[407782147,1772797858101,-507.9370095,0.00035616,7]
[407782148,1772797858113,-507.9370095,0.00035616,7]
[407782149,1772797858122,-507.9370095,0.00035616,7]
[407782150,1772797858131,-507.9370095,0.00035616,7]
[407782151,1772797858141,-507.9370095,0.00035616,7]
[407782152,1772797858151,-507.9370095,0.00035616,7]
[407782153,1772797858160,-111396.3778751,0.00036,10]
[407782154,1772797858169,-151.0,0.00036,7]
[407782155,1772797858181,-394.543265,0.00036,7]
[407782156,1772797858191,-394.543265,0.00036,7]
[407782157,1772797858201,-394.543265,0.00036,7]
[407782158,1772797858211,-394.543265,0.00036,7]
[407782159,1772797858220,-151.0,0.00036,7]
[407782160,1772797858229,-151.0,0.00036,7]
[407782161,1772797858238,-268.84519,0.00036,7]
[407782162,1772797858248,-151.0,0.00036,7]
[407782163,1772797858257,-241.645676,0.00036,7]
[407782164,1772797858266,-241.908339,0.00036,7]
[407782165,1772797858276,-241.645676,0.00036,7]
[407782166,1772797858285,-241.645676,0.00036,7]
[407782167,1772797858295,-241.645676,0.00036,7]
[407782168,1772797858305,-332.483725,0.00036,7]
[407782169,1772797858314,-332.483725,0.00036,7]
[407782170,1772797858323,-332.483725,0.00036,7]
[407782171,1772797858333,-332.483725,0.00036,7]
[407782172,1772797858342,-151.0,0.00036,7]
[407782173,1772797858351,-262.752572,0.00036,7]
[407782174,1772797858360,-225.902031,0.00036,7]
[407782175,1772797858369,-225.902031,0.00036,7]
[407782176,1772797858379,-225.902031,0.00036,7]
[407782177,1772797858389,-225.902031,0.00036,7]
[407782178,1772797858398,-151.0,0.00036,7]
[407782179,1772797858408,-1068.578217,0.00036,7]
[407782180,1772797858417,-1068.578217,0.00036,7]
[407782181,1772797858427,-1068.578217,0.00036,7]
[407782182,1772797858436,-1068.578217,0.00036,7]
[407782183,1772797858446,-617.751247,0.00036,7]
[407782184,1772797858455,-617.751247,0.00036,7]
[407782185,1772797858465,-617.751247,0.00036,7]
[407782186,1772797858474,-617.751247,0.00036,7]
[407782187,1772797858483,-507.054478,0.00036,7]
[407782188,1772797858492,-507.054478,0.00036,7]
[407782189,1772797858501,-507.054478,0.00036,7]
[407782190,1772797858511,-507.054478,0.00036,7]
[407782191,1772797858520,-200353.0,0.0003605,20]
[407782192,1772797858529,-5000.0,0.0003607,10]
[407782193,1772797858539,-724.53543,0.00036088,30]
[407782194,1772797858548,-152.0,0.00036113,19]
[407782195,1772797858557,-360.0,0.00036118,30]
[407782196,1772797858566,-2530.1,0.00036127,10]
[407782197,1772797858575,-5000.0,0.00036188,10]
[407782198,1772797858584,-672.87,0.00036238,10]
[407782199,1772797858593,-830.78,0.00036286,10]
[407782200,1772797858602,-724.53543,0.00036288,30]
[407782201,1772797858611,-25000.0,0.00036298,10]
[407782202,1772797858620,-150.1,0.00036316,2]
[407782203,1772797858629,-150.1,0.00036316,2]
[407782204,1772797858639,-150.1,0.00036316,2]
[407782205,1772797858648,-151.63269291,0.00036316,2]
[407782206,1772797858658,-16559.02,0.00036325,10]
[407782207,1772797858668,-25000.0,0.00036357,10]
[407782208,1772797858677,-360.0,0.00036382,30]
[407782209,1772797858686,-25000.0,0.00036386,10]
[407782210,1772797858696,-150.0,0.0003643,2]
[407782211,1772797858705,-1568.79,0.00036454,10]
[407782212,1772797858714,-724.53543,0.00036488,30]
[407782213,1772797858723,-3949.48418423,0.00036494,35]
[407782214,1772797858732,-5000.0,0.00036529,10]
[407782215,1772797858741,-1003.11,0.00036595,30]
[407782216,1772797858750,-2510.99,0.00036609,10]
[407782217,1772797858760,-3585.0,0.0003664,10]
[407782218,1772797858769,-197.06,0.00036685,10]
[407782219,1772797858778,-724.53543,0.00036688,30]
[407782220,1772797858788,-2530.1,0.00036728,10]
[407782221,1772797858798,-160.77654311,0.0003674,30]
[407782222,1772797858807,-2500.0,0.00036789,10]
[407782223,1772797858816,-1348.64,0.000368,3]
[407782224,1772797858826,-152.0,0.00036808,20]
[407782225,1772797858835,-5000.0,0.00036851,10]
[407782226,1772797858844,-2510.99,0.00036883,10]
[407782227,1772797858854,-2415.1181,0.00036888,7]
[407782228,1772797858863,-724.53543,0.00036888,30]
[407782229,1772797858872,-214.0,0.0003689,30]
[407782230,1772797858881,-14211.55442587,0.0003691,2]
[407782231,1772797858890,-500.0,0.00037,60]
[407782232,1772797858900,-3567.05,0.00037,14]
[407782233,1772797858909,-400.0,0.0003707,2]
[407782234,1772797858918,-220.9527594,0.00037087,30]
[407782235,1772797858927,-724.53543,0.00037088,30]
[407782236,1772797858937,-792.81,0.00037099,120]
[407782237,1772797858948,-500.0,0.00037099,120]
[407782238,1772797858957,-500.0,0.00037099,120]
[407782239,1772797858966,-500.0,0.00037099,120]
[407782240,1772797858975,-200353.0,0.000371,20]
[407782241,1772797858984,-1000.0,0.0003713,2]
[407782242,1772797858994,-1000.0,0.0003713,2]
[407782243,1772797859006,-1000.0,0.0003713,2]
[407782244,1772797859015,-1000.0,0.0003713,2]
[407782245,1772797859025,-1000.0,0.0003713,2]
[407782246,1772797859035,-1000.0,0.00037215,2]
[407782247,1772797859044,-1000.0,0.00037215,2]
[407782248,1772797859053,-1000.0,0.00037215,2]
[407782249,1772797859062,-1000.0,0.00037215,2]
[407782250,1772797859072,-1000.0,0.00037215,2]
[407782251,1772797859081,-724.53543,0.00037288,30]
[407782252,1772797859090,-825.0,0.00037319,90]
[407782253,1772797859099,-724.53543,0.00037488,30]
[407782254,1772797859108,-5000.0,0.000375,90]
[407782255,1772797859117,-3153.62420388,0.000375,30]
[407782256,1772797859127,-152.0,0.00037502,21]
[407782257,1772797859137,-360.0,0.00037507,30]
[407782258,1772797859147,-244.8418869,0.00037534,7]
[407782259,1772797859156,-1000.0,0.00037605,2]
[407782260,1772797859165,-724.53543,0.00037688,30]
[407782261,1772797859175,-2000.0,0.000377,2]
[407782262,1772797859184,-1165.05685142,0.00037753,120]
[407782263,1772797859193,-1032.16,0.000378,120]
[407782264,1772797859202,-960.0,0.000378,120]
[407782265,1772797859211,-724.53543,0.00037888,30]
[407782266,1772797859220,-578.66915446,0.000379,120]
[407782267,1772797859229,-619.0,0.000379,2]
[407782268,1772797859239,-1042.0,0.000379,2]